[Event "Titled Tuesday Blitz August 22 Early 2023"]
[White "Akylbek2021"]
[Black "NovozhilovSemen"]
[WhiteElo "2362"]
[BlackElo "2502"]
[Result "0-1"]
[Round "4"]
[TimeControl "180+1"]
[Date "2023.08.22"]
[WhiteClock "0:00:26"]
[BlackClock "0:00:33"]
[Board "174"]

1. d4 {[%clk 0:03:00]}  Nf6 {[%clk 0:02:57]} 2. Bf4 {[%clk 0:03:00]}  e6 {[%clk 0:02:57]} 3. Nc3 {[%clk 0:03:00]}  d5 {[%clk 0:02:55]} 4. Nb5 {[%clk 0:03:00]}  Na6 {[%clk 0:02:54]} 5. e3 {[%clk 0:03:00]}  Ne4 {[%clk 0:02:54]} 6. a4 {[%clk 0:02:44]}  Bb4+ {[%clk 0:02:45]} 7. c3 {[%clk 0:02:42]}  Be7 {[%clk 0:02:45]} 8. Bd3 {[%clk 0:02:37]}  g5 {[%clk 0:02:43]} 9. Be5 {[%clk 0:02:35]}  f6 {[%clk 0:02:42]} 10. Qh5+ {[%clk 0:02:32]}  Kd7 {[%clk 0:02:41]} 11. Bg3 {[%clk 0:02:25]}  Nxg3 {[%clk 0:02:38]} 12. hxg3 {[%clk 0:02:23]}  c6 {[%clk 0:02:39]} 13. Na3 {[%clk 0:02:19]}  Qb6 {[%clk 0:02:36]} 14. Rb1 {[%clk 0:01:59]}  Qb3 {[%clk 0:02:29]} 15. Ne2 {[%clk 0:01:49]}  Nb4 {[%clk 0:02:22]} 16. Bg6 {[%clk 0:01:26]}  Na6 {[%clk 0:01:21]} 17. Bc2 {[%clk 0:01:25]}  Qb6 {[%clk 0:01:18]} 18. Qf7 {[%clk 0:01:18]}  h6 {[%clk 0:01:11]} 19. f4 {[%clk 0:01:11]}  Qd8 {[%clk 0:01:06]} 20. f5 {[%clk 0:01:09]}  Kd6 {[%clk 0:01:06]} 21. fxe6 {[%clk 0:00:59]}  Bxe6 {[%clk 0:01:07]} 22. Qh5 {[%clk 0:01:00]}  Kd7 {[%clk 0:01:03]} 23. b4 {[%clk 0:00:59]}  Nc7 {[%clk 0:01:01]} 24. Qf3 {[%clk 0:00:58]}  Qg8 {[%clk 0:00:58]} 25. Nc1 {[%clk 0:00:55]}  Rf8 {[%clk 0:00:56]} 26. Nd3 {[%clk 0:00:54]}  b6 {[%clk 0:00:51]} 27. Kd2 {[%clk 0:00:49]}  Bd6 {[%clk 0:00:51]} 28. a5 {[%clk 0:00:49]}  f5 {[%clk 0:00:50]} 29. axb6 {[%clk 0:00:43]}  axb6 {[%clk 0:00:51]} 30. Rb3 {[%clk 0:00:42]}  b5 {[%clk 0:00:47]} 31. Nc5+ {[%clk 0:00:39]}  Bxc5 {[%clk 0:00:47]} 32. bxc5 {[%clk 0:00:40]}  Qf7 {[%clk 0:00:40]} 33. Rf1 {[%clk 0:00:39]}  h5 {[%clk 0:00:39]} 34. Bd3 {[%clk 0:00:36]}  h4 {[%clk 0:00:33]} 35. gxh4 {[%clk 0:00:31]}  Rxh4 {[%clk 0:00:32]} 36. Qg3 {[%clk 0:00:32]}  Qe7 {[%clk 0:00:26]} 37. Nc2 {[%clk 0:00:30]}  f4 {[%clk 0:00:25]} 38. exf4 {[%clk 0:00:31]}  gxf4 {[%clk 0:00:24]} 39. Qe1 {[%clk 0:00:29]}  Rg4 {[%clk 0:00:24]} 40. Rf2 {[%clk 0:00:29]}  Rfg8 {[%clk 0:00:23]} 41. Qe2 {[%clk 0:00:29]}  Qg5 {[%clk 0:00:24]} 42. Ne1 {[%clk 0:00:29]}  f3+ {[%clk 0:00:21]} 43. Qe3 {[%clk 0:00:30]}  Qxe3+ {[%clk 0:00:20]} 44. Kxe3 {[%clk 0:00:31]}  fxg2 {[%clk 0:00:21]} 45. Nf3 {[%clk 0:00:22]}  g1=Q {[%clk 0:00:19]} 46. Nxg1 {[%clk 0:00:23]}  Rxg1 {[%clk 0:00:20]} 47. Ra3 {[%clk 0:00:22]}  R8g3+ {[%clk 0:00:20]} 48. Kd2 {[%clk 0:00:21]}  R1g2 {[%clk 0:00:20]} 49. Rxg2 {[%clk 0:00:18]}  Rxg2+ {[%clk 0:00:21]} 50. Ke1 {[%clk 0:00:19]}  Rb2 {[%clk 0:00:21]} 51. Ra7 {[%clk 0:00:18]}  b4 {[%clk 0:00:21]} 52. cxb4 {[%clk 0:00:18]}  Rxb4 {[%clk 0:00:22]} 53. Kd2 {[%clk 0:00:18]}  Rxd4 {[%clk 0:00:22]} 54. Kc3 {[%clk 0:00:18]}  Rh4 {[%clk 0:00:22]} 55. Ra1 {[%clk 0:00:18]}  d4+ {[%clk 0:00:22]} 56. Kd2 {[%clk 0:00:18]}  Rh2+ {[%clk 0:00:23]} 57. Be2 {[%clk 0:00:18]}  Bc4 {[%clk 0:00:23]} 58. Re1 {[%clk 0:00:16]}  d3 {[%clk 0:00:23]} 59. Kc3 {[%clk 0:00:15]}  Rxe2 {[%clk 0:00:23]} 60. Rg1 {[%clk 0:00:15]}  Bf7 {[%clk 0:00:22]} 61. Rg7 {[%clk 0:00:15]}  Re7 {[%clk 0:00:22]} 62. Kxd3 {[%clk 0:00:15]}  Bc4+ {[%clk 0:00:22]} 63. Kxc4 {[%clk 0:00:16]}  Rxg7 {[%clk 0:00:23]} 64. Kc3 {[%clk 0:00:17]}  Rg5 {[%clk 0:00:24]} 65. Kb4 {[%clk 0:00:18]}  Na6+ {[%clk 0:00:24]} 66. Kc4 {[%clk 0:00:19]}  Nxc5 {[%clk 0:00:25]} 67. Kc3 {[%clk 0:00:20]}  Ne6 {[%clk 0:00:25]} 68. Kb4 {[%clk 0:00:20]}  c5+ {[%clk 0:00:26]} 69. Kc4 {[%clk 0:00:21]}  Kc6 {[%clk 0:00:27]} 70. Kc3 {[%clk 0:00:22]}  Rg4 {[%clk 0:00:28]} 71. Kb3 {[%clk 0:00:23]}  c4+ {[%clk 0:00:29]} 72. Kc3 {[%clk 0:00:23]}  Kc5 {[%clk 0:00:29]} 73. Kb2 {[%clk 0:00:24]}  Rg3 {[%clk 0:00:30]} 74. Kc2 {[%clk 0:00:25]}  c3 {[%clk 0:00:31]} 75. Kc1 {[%clk 0:00:26]}  Kc4 {[%clk 0:00:32]} 76. Kc2 {[%clk 0:00:27]}  Rg2+ {[%clk 0:00:32]} 77. Kb1 {[%clk 0:00:28]}  Nd4 {[%clk 0:00:32]} 78. Ka1 {[%clk 0:00:25]}  Nb3+ {[%clk 0:00:32]} 79. Kb1 {[%clk 0:00:26]}  Rb2# {[%clk 0:00:33]} 0-1


[Site "https://www.chess.com"]

[Event "Titled Tuesday Blitz August 22 Early 2023"]
[White "Tanwir, Furqan"]
[Black "Gogolev, Artem"]
[WhiteFideId "2023962"]
[BlackFideId "4116615"]
[WhiteElo "2358"]
[BlackElo "2500"]
[Result "0-1"]
[Round "4"]
[TimeControl "180+1"]
[Date "2023.08.22"]
[WhiteClock "0:02:16"]
[BlackClock "0:01:34"]
[Board "176"]

1. e4 {[%clk 0:03:00]}  c6 {[%clk 0:02:54]} 2. d4 {[%clk 0:03:00]}  d5 {[%clk 0:02:54]} 3. Nc3 {[%clk 0:03:00]}  dxe4 {[%clk 0:02:53]} 4. Nxe4 {[%clk 0:03:01]}  Bf5 {[%clk 0:02:51]} 5. Ng3 {[%clk 0:03:01]}  Bg6 {[%clk 0:02:51]} 6. h4 {[%clk 0:03:01]}  h6 {[%clk 0:02:52]} 7. Nf3 {[%clk 0:03:02]}  Nd7 {[%clk 0:02:52]} 8. h5 {[%clk 0:03:02]}  Bh7 {[%clk 0:02:52]} 9. Bc4 {[%clk 0:03:03]}  Ngf6 {[%clk 0:02:49]} 10. Qe2 {[%clk 0:03:01]}  e6 {[%clk 0:02:48]} 11. c3 {[%clk 0:02:59]}  Bd6 {[%clk 0:02:46]} 12. Ne5 {[%clk 0:02:59]}  Nd5 {[%clk 0:02:35]} 13. f4 {[%clk 0:02:54]}  O-O {[%clk 0:02:16]} 14. Bd3 {[%clk 0:02:51]}  Bxd3 {[%clk 0:02:14]} 15. Qxd3 {[%clk 0:02:50]}  c5 {[%clk 0:02:12]} 16. Bd2 {[%clk 0:02:47]}  cxd4 {[%clk 0:02:09]} 17. cxd4 {[%clk 0:02:48]}  Ne7 {[%clk 0:01:59]} 18. O-O-O {[%clk 0:02:46]}  Bxe5 {[%clk 0:01:57]} 19. dxe5 {[%clk 0:02:45]}  Rc8+ {[%clk 0:01:55]} 20. Bc3 {[%clk 0:02:44]}  Nd5 {[%clk 0:01:55]} 21. Ne2 {[%clk 0:02:31]}  Nc5 {[%clk 0:01:51]} 22. Qf3 {[%clk 0:02:25]}  Qb6 {[%clk 0:01:47]} 23. Rxd5 {[%clk 0:02:26]}  exd5 {[%clk 0:01:46]} 24. Qxd5 {[%clk 0:02:26]}  Rfd8 {[%clk 0:01:43]} 25. Qf3 {[%clk 0:02:19]}  Na4 {[%clk 0:01:36]} 26. Rh3 {[%clk 0:02:16]}  Qxb2# {[%clk 0:01:34]} 0-1


[Site "https://www.chess.com"]

[Event "Titled Tuesday Blitz August 22 Early 2023"]
[White "slidingknight2775"]
[Black "Senft, Sean"]
[BlackFideId "2044960"]
[WhiteElo "2498"]
[BlackElo "2352"]
[Result "1-0"]
[Round "4"]
[TimeControl "180+1"]
[Date "2023.08.22"]
[WhiteClock "0:00:06"]
[BlackClock "0:00:01"]
[Board "177"]

1. Nf3 {[%clk 0:03:00]}  d5 {[%clk 0:02:59]} 2. c4 {[%clk 0:03:01]}  c6 {[%clk 0:03:00]} 3. g3 {[%clk 0:03:02]}  Nf6 {[%clk 0:03:00]} 4. Bg2 {[%clk 0:03:02]}  Bg4 {[%clk 0:03:01]} 5. Ne5 {[%clk 0:03:01]}  Bf5 {[%clk 0:03:01]} 6. cxd5 {[%clk 0:03:00]}  cxd5 {[%clk 0:03:01]} 7. Qb3 {[%clk 0:03:00]}  Nbd7 {[%clk 0:02:51]} 8. d4 {[%clk 0:02:52]}  Qb6 {[%clk 0:02:21]} 9. O-O {[%clk 0:02:20]}  e6 {[%clk 0:02:17]} 10. Nxd7 {[%clk 0:02:11]}  Nxd7 {[%clk 0:02:16]} 11. Nc3 {[%clk 0:01:47]}  Be7 {[%clk 0:02:04]} 12. Qa4 {[%clk 0:01:20]}  Qc6 {[%clk 0:01:48]} 13. Qxc6 {[%clk 0:01:14]}  bxc6 {[%clk 0:01:48]} 14. Be3 {[%clk 0:00:58]}  O-O {[%clk 0:01:38]} 15. Rfc1 {[%clk 0:00:54]}  Rab8 {[%clk 0:01:37]} 16. b3 {[%clk 0:00:53]}  Rfc8 {[%clk 0:01:36]} 17. Na4 {[%clk 0:00:53]}  f6 {[%clk 0:01:27]} 18. h3 {[%clk 0:00:37]}  Bg6 {[%clk 0:01:10]} 19. Bf3 {[%clk 0:00:24]}  Rb7 {[%clk 0:01:04]} 20. Rc3 {[%clk 0:00:20]}  Rbc7 {[%clk 0:01:01]} 21. Rac1 {[%clk 0:00:15]}  Bb4 {[%clk 0:01:01]} 22. Bf4 {[%clk 0:00:13]}  e5 {[%clk 0:01:01]} 23. Rxc6 {[%clk 0:00:08]}  Rxc6 {[%clk 0:00:28]} 24. Rxc6 {[%clk 0:00:09]}  Rxc6 {[%clk 0:00:24]} 25. Bxd5+ {[%clk 0:00:10]}  Kf8 {[%clk 0:00:20]} 26. Bxc6 {[%clk 0:00:10]}  exf4 {[%clk 0:00:19]} 27. Bxd7 {[%clk 0:00:10]}  fxg3 {[%clk 0:00:20]} 28. fxg3 {[%clk 0:00:11]}  Bb1 {[%clk 0:00:19]} 29. Be6 {[%clk 0:00:08]}  Bxa2 {[%clk 0:00:18]} 30. Bc4 {[%clk 0:00:09]}  Ke7 {[%clk 0:00:11]} 31. Kf2 {[%clk 0:00:09]}  Kd6 {[%clk 0:00:11]} 32. Ke3 {[%clk 0:00:09]}  Bb1 {[%clk 0:00:11]} 33. Bd3 {[%clk 0:00:09]}  Ba2 {[%clk 0:00:10]} 34. Bc2 {[%clk 0:00:09]}  h5 {[%clk 0:00:07]} 35. Kd3 {[%clk 0:00:08]}  f5 {[%clk 0:00:05]} 36. Nc3 {[%clk 0:00:07]}  g5 {[%clk 0:00:03]} 37. Nxa2 {[%clk 0:00:06]}  Be1 {[%clk 0:00:02]} 38. Ke3 {[%clk 0:00:07]}  Bxg3 {[%clk 0:00:02]} 39. Bxf5 {[%clk 0:00:07]}  Bf4+ {[%clk 0:00:02]} 40. Kf3 {[%clk 0:00:07]}  Bd2 {[%clk 0:00:02]} 41. e4 {[%clk 0:00:07]}  a5 {[%clk 0:00:01]} 42. Bg6 {[%clk 0:00:06]}  g4+ {[%clk 0:00:01]} 43. hxg4 {[%clk 0:00:06]}  hxg4+ {[%clk 0:00:02]} 44. Kxg4 {[%clk 0:00:06]}  a4 {[%clk 0:00:01]} 45. bxa4 {[%clk 0:00:06]} 1-0


[Site "https://www.chess.com"]

[Event "Titled Tuesday Blitz August 22 Early 2023"]
[White "Ziatdinov, Raset"]
[Black "Balabayeva, Xeniya"]
[WhiteFideId "2015323"]
[BlackFideId "13719688"]
[WhiteElo "2352"]
[BlackElo "2497"]
[Result "0-1"]
[Round "4"]
[TimeControl "180+1"]
[Date "2023.08.22"]
[WhiteClock "0:00:20"]
[BlackClock "0:00:03"]
[Board "178"]

1. e4 {[%clk 0:03:00]}  c6 {[%clk 0:02:59]} 2. d4 {[%clk 0:03:00]}  d5 {[%clk 0:02:59]} 3. f3 {[%clk 0:03:00]}  dxe4 {[%clk 0:02:57]} 4. fxe4 {[%clk 0:03:00]}  e5 {[%clk 0:02:58]} 5. Nf3 {[%clk 0:03:01]}  Bg4 {[%clk 0:02:40]} 6. Bc4 {[%clk 0:02:59]}  Nd7 {[%clk 0:02:21]} 7. O-O {[%clk 0:02:54]}  Ngf6 {[%clk 0:02:17]} 8. c3 {[%clk 0:02:51]}  Bd6 {[%clk 0:02:01]} 9. Bg5 {[%clk 0:02:46]}  Qc7 {[%clk 0:01:53]} 10. Nbd2 {[%clk 0:02:42]}  O-O {[%clk 0:01:19]} 11. Kh1 {[%clk 0:02:34]}  Rae8 {[%clk 0:00:59]} 12. Qc2 {[%clk 0:02:21]}  h6 {[%clk 0:00:21]} 13. Bh4 {[%clk 0:02:17]}  Bh5 {[%clk 0:00:18]} 14. Rae1 {[%clk 0:02:16]}  Bg6 {[%clk 0:00:17]} 15. Bxf6 {[%clk 0:01:38]}  Nxf6 {[%clk 0:00:13]} 16. Nh4 {[%clk 0:01:38]}  Bh7 {[%clk 0:00:11]} 17. Nf5 {[%clk 0:01:31]}  Bxf5 {[%clk 0:00:09]} 18. Rxf5 {[%clk 0:01:29]}  b5 {[%clk 0:00:07]} 19. Bb3 {[%clk 0:01:27]}  c5 {[%clk 0:00:06]} 20. dxe5 {[%clk 0:01:19]}  Bxe5 {[%clk 0:00:06]} 21. c4 {[%clk 0:01:08]}  b4 {[%clk 0:00:04]} 22. Ba4 {[%clk 0:01:07]}  Re7 {[%clk 0:00:04]} 23. Nf3 {[%clk 0:01:07]}  Rd8 {[%clk 0:00:03]} 24. Rd1 {[%clk 0:01:06]}  Rxd1+ {[%clk 0:00:03]} 25. Qxd1 {[%clk 0:01:06]}  g6 {[%clk 0:00:02]} 26. Rxe5 {[%clk 0:00:47]}  Rxe5 {[%clk 0:00:02]} 27. Nxe5 {[%clk 0:00:47]}  Qxe5 {[%clk 0:00:02]} 28. Bc6 {[%clk 0:00:34]}  Nxe4 {[%clk 0:00:02]} 29. Qe1 {[%clk 0:00:25]}  f5 {[%clk 0:00:02]} 30. Bd5+ {[%clk 0:00:24]}  Kg7 {[%clk 0:00:01]} 31. b3 {[%clk 0:00:25]}  Qc3 {[%clk 0:00:01]} 32. Qd1 {[%clk 0:00:20]}  Nf2+ {[%clk 0:00:01]} 33. Kg1 {[%clk 0:00:20]}  Nxd1 {[%clk 0:00:02]} 34. Kf1 {[%clk 0:00:20]}  Qe3 {[%clk 0:00:02]} 35. Bf3 {[%clk 0:00:20]}  Qf2# {[%clk 0:00:03]} 0-1


[Site "https://www.chess.com"]

[Event "Titled Tuesday Blitz August 22 Early 2023"]
[White "only_strong_moves"]
[Black "Vaglio Munoz, Jaime"]
[BlackFideId "6500145"]
[WhiteElo "2495"]
[BlackElo "2345"]
[Result "1-0"]
[Round "4"]
[TimeControl "180+1"]
[Date "2023.08.22"]
[WhiteClock "0:00:07"]
[BlackClock "0:00:30"]
[Board "180"]

1. d4 {[%clk 0:03:00]}  c5 {[%clk 0:02:59]} 2. d5 {[%clk 0:03:00]}  d6 {[%clk 0:03:00]} 3. c4 {[%clk 0:03:00]}  b5 {[%clk 0:03:00]} 4. cxb5 {[%clk 0:02:59]}  a6 {[%clk 0:03:00]} 5. bxa6 {[%clk 0:02:59]}  Bxa6 {[%clk 0:03:01]} 6. Nc3 {[%clk 0:02:58]}  g6 {[%clk 0:03:01]} 7. e4 {[%clk 0:02:57]}  Bxf1 {[%clk 0:03:00]} 8. Kxf1 {[%clk 0:02:58]}  Bg7 {[%clk 0:03:00]} 9. Nf3 {[%clk 0:02:58]}  Nd7 {[%clk 0:03:00]} 10. g3 {[%clk 0:02:59]}  Ngf6 {[%clk 0:02:59]} 11. Kg2 {[%clk 0:02:58]}  O-O {[%clk 0:02:59]} 12. Qe2 {[%clk 0:02:54]}  Qb6 {[%clk 0:02:59]} 13. a4 {[%clk 0:02:52]}  Rfb8 {[%clk 0:02:58]} 14. Ra3 {[%clk 0:02:48]}  Qa6 {[%clk 0:02:52]} 15. Nb5 {[%clk 0:02:45]}  Rb7 {[%clk 0:02:50]} 16. b3 {[%clk 0:02:39]}  Ne8 {[%clk 0:02:44]} 17. h4 {[%clk 0:02:26]}  h5 {[%clk 0:02:42]} 18. Re1 {[%clk 0:02:14]}  Nc7 {[%clk 0:02:39]} 19. Nxc7 {[%clk 0:02:12]}  Qxe2 {[%clk 0:02:25]} 20. Rxe2 {[%clk 0:02:13]}  Rxc7 {[%clk 0:02:25]} 21. Bb2 {[%clk 0:02:11]}  Rb7 {[%clk 0:02:24]} 22. Bxg7 {[%clk 0:02:10]}  Kxg7 {[%clk 0:02:25]} 23. Nd2 {[%clk 0:02:00]}  Ne5 {[%clk 0:02:21]} 24. Re3 {[%clk 0:01:53]}  Rab8 {[%clk 0:02:15]} 25. f4 {[%clk 0:01:51]}  Ng4 {[%clk 0:02:12]} 26. Rd3 {[%clk 0:01:45]}  Rb4 {[%clk 0:02:09]} 27. Nc4 {[%clk 0:01:38]}  Nf6 {[%clk 0:02:08]} 28. Kf3 {[%clk 0:01:29]}  Nd7 {[%clk 0:02:01]} 29. a5 {[%clk 0:01:30]}  Ra8 {[%clk 0:02:00]} 30. Ke2 {[%clk 0:01:15]}  Kf8 {[%clk 0:01:59]} 31. e5 {[%clk 0:01:15]}  dxe5 {[%clk 0:01:56]} 32. fxe5 {[%clk 0:01:15]}  Rb5 {[%clk 0:01:52]} 33. Kd2 {[%clk 0:01:00]}  Ke8 {[%clk 0:01:49]} 34. Kc2 {[%clk 0:00:59]}  Kd8 {[%clk 0:01:42]} 35. e6 {[%clk 0:00:59]}  Nf6 {[%clk 0:01:35]} 36. exf7 {[%clk 0:00:58]}  Kc7 {[%clk 0:01:34]} 37. d6+ {[%clk 0:00:53]}  exd6 {[%clk 0:01:33]} 38. Nxd6 {[%clk 0:00:49]}  Rb4 {[%clk 0:01:27]} 39. Ne8+ {[%clk 0:00:38]}  Rxe8 {[%clk 0:01:24]} 40. fxe8=Q {[%clk 0:00:38]}  Nxe8 {[%clk 0:01:25]} 41. a6 {[%clk 0:00:37]}  Rb8 {[%clk 0:01:22]} 42. a7 {[%clk 0:00:37]}  Ra8 {[%clk 0:01:22]} 43. Re3 {[%clk 0:00:34]}  Nd6 {[%clk 0:01:22]} 44. Re7+ {[%clk 0:00:34]}  Kc6 {[%clk 0:01:22]} 45. Re6 {[%clk 0:00:32]}  Kd5 {[%clk 0:01:22]} 46. Rxg6 {[%clk 0:00:29]}  Nb5 {[%clk 0:01:22]} 47. Ra5 {[%clk 0:00:29]}  Nd4+ {[%clk 0:01:18]} 48. Kb2 {[%clk 0:00:27]}  Nc6 {[%clk 0:01:12]} 49. Rg5+ {[%clk 0:00:18]}  Kd6 {[%clk 0:01:09]} 50. Ra6 {[%clk 0:00:19]}  Kd7 {[%clk 0:01:08]} 51. Rxc5 {[%clk 0:00:18]}  Nb4 {[%clk 0:01:07]} 52. Ra4 {[%clk 0:00:17]}  Nd3+ {[%clk 0:01:06]} 53. Kc3 {[%clk 0:00:17]}  Nxc5 {[%clk 0:01:07]} 54. Ra5 {[%clk 0:00:16]}  Kc6 {[%clk 0:01:06]} 55. Kc4 {[%clk 0:00:15]}  Nd7 {[%clk 0:01:06]} 56. Rxh5 {[%clk 0:00:12]}  Rxa7 {[%clk 0:01:06]} 57. b4 {[%clk 0:00:12]}  Nb6+ {[%clk 0:01:06]} 58. Kb3 {[%clk 0:00:11]}  Rf7 {[%clk 0:01:04]} 59. b5+ {[%clk 0:00:11]}  Kb7 {[%clk 0:01:04]} 60. Kb4 {[%clk 0:00:10]}  Rd7 {[%clk 0:00:59]} 61. Kc5 {[%clk 0:00:09]}  Rc7+ {[%clk 0:00:58]} 62. Kd6 {[%clk 0:00:08]}  Nc4+ {[%clk 0:00:57]} 63. Ke6 {[%clk 0:00:07]}  Ne3 {[%clk 0:00:56]} 64. Rg5 {[%clk 0:00:05]}  Rc4 {[%clk 0:00:52]} 65. h5 {[%clk 0:00:05]}  Nc2 {[%clk 0:00:46]} 66. h6 {[%clk 0:00:05]}  Nd4+ {[%clk 0:00:46]} 67. Kd5 {[%clk 0:00:04]}  Rb4 {[%clk 0:00:42]} 68. h7 {[%clk 0:00:04]}  Rxb5+ {[%clk 0:00:40]} 69. Kxd4 {[%clk 0:00:04]}  Rxg5 {[%clk 0:00:40]} 70. h8=Q {[%clk 0:00:05]}  Rg4+ {[%clk 0:00:40]} 71. Kd5 {[%clk 0:00:04]}  Rxg3 {[%clk 0:00:40]} 72. Qh7+ {[%clk 0:00:04]}  Ka6 {[%clk 0:00:39]} 73. Qh6+ {[%clk 0:00:04]}  Kb5 {[%clk 0:00:38]} 74. Qh7 {[%clk 0:00:03]}  Rb3 {[%clk 0:00:37]} 75. Kd4 {[%clk 0:00:03]}  Rb4+ {[%clk 0:00:37]} 76. Kc3 {[%clk 0:00:03]}  Rc4+ {[%clk 0:00:37]} 77. Kd3 {[%clk 0:00:04]}  Rb4 {[%clk 0:00:37]} 78. Qb7+ {[%clk 0:00:04]}  Kc5 {[%clk 0:00:37]} 79. Qe7+ {[%clk 0:00:04]}  Kb5 {[%clk 0:00:37]} 80. Qd7+ {[%clk 0:00:05]}  Kc5 {[%clk 0:00:37]} 81. Kc3 {[%clk 0:00:05]}  Rc4+ {[%clk 0:00:37]} 82. Kb3 {[%clk 0:00:05]}  Rb4+ {[%clk 0:00:37]} 83. Ka3 {[%clk 0:00:05]}  Rb6 {[%clk 0:00:37]} 84. Qd3 {[%clk 0:00:05]}  Rb4 {[%clk 0:00:35]} 85. Qc3+ {[%clk 0:00:05]}  Rc4 {[%clk 0:00:35]} 86. Qe5+ {[%clk 0:00:06]}  Kb6 {[%clk 0:00:35]} 87. Kb3 {[%clk 0:00:06]}  Rc5 {[%clk 0:00:35]} 88. Qd6+ {[%clk 0:00:06]}  Kb5 {[%clk 0:00:35]} 89. Qb8+ {[%clk 0:00:05]}  Kc6 {[%clk 0:00:35]} 90. Kb4 {[%clk 0:00:06]}  Rd5 {[%clk 0:00:34]} 91. Qa8+ {[%clk 0:00:06]}  Kd6 {[%clk 0:00:34]} 92. Kc4 {[%clk 0:00:06]}  Re5 {[%clk 0:00:32]} 93. Qb8+ {[%clk 0:00:06]}  Ke6 {[%clk 0:00:32]} 94. Kd4 {[%clk 0:00:07]}  Rf5 {[%clk 0:00:31]} 95. Ke4 {[%clk 0:00:07]}  Rf6 {[%clk 0:00:29]} 96. Qc8+ {[%clk 0:00:06]}  Kf7 {[%clk 0:00:29]} 97. Qd7+ {[%clk 0:00:06]}  Kg6 {[%clk 0:00:29]} 98. Ke5 {[%clk 0:00:06]}  Rf5+ {[%clk 0:00:29]} 99. Qxf5+ {[%clk 0:00:05]}  Kh6 {[%clk 0:00:29]} 100. Qg4 {[%clk 0:00:06]}  Kh7 {[%clk 0:00:29]} 101. Kf6 {[%clk 0:00:06]}  Kh8 {[%clk 0:00:30]} 102. Qg7# {[%clk 0:00:07]} 1-0


[Site "https://www.chess.com"]

[Event "Titled Tuesday Blitz August 22 Early 2023"]
[White "Albertini, Luca"]
[Black "Shuvalov, Evgenij"]
[WhiteFideId "847038"]
[BlackFideId "4187237"]
[WhiteElo "2333"]
[BlackElo "2483"]
[Result "1/2-1/2"]
[Round "4"]
[TimeControl "180+1"]
[Date "2023.08.22"]
[WhiteClock "0:00:12"]
[BlackClock "0:00:12"]
[Board "182"]

1. e4 {[%clk 0:03:00]}  e6 {[%clk 0:02:59]} 2. d4 {[%clk 0:03:00]}  d5 {[%clk 0:03:00]} 3. e5 {[%clk 0:03:01]}  c5 {[%clk 0:03:00]} 4. c3 {[%clk 0:03:01]}  Nc6 {[%clk 0:03:00]} 5. Bd3 {[%clk 0:03:01]}  cxd4 {[%clk 0:02:55]} 6. Nf3 {[%clk 0:03:01]}  dxc3 {[%clk 0:02:45]} 7. Nxc3 {[%clk 0:03:02]}  Bd7 {[%clk 0:02:41]} 8. O-O {[%clk 0:03:03]}  Nge7 {[%clk 0:02:36]} 9. Bg5 {[%clk 0:02:55]}  Qb8 {[%clk 0:02:33]} 10. Re1 {[%clk 0:02:38]}  Ng6 {[%clk 0:02:32]} 11. Bxg6 {[%clk 0:02:35]}  fxg6 {[%clk 0:02:18]} 12. Rc1 {[%clk 0:02:34]}  Bb4 {[%clk 0:02:16]} 13. Nb5 {[%clk 0:01:34]}  O-O {[%clk 0:02:08]} 14. Re3 {[%clk 0:01:35]}  a6 {[%clk 0:01:42]} 15. Nbd4 {[%clk 0:01:31]}  Nxd4 {[%clk 0:01:41]} 16. Nxd4 {[%clk 0:01:30]}  Rc8 {[%clk 0:01:34]} 17. Rb1 {[%clk 0:01:18]}  Bc5 {[%clk 0:01:33]} 18. Rf3 {[%clk 0:01:09]}  Rf8 {[%clk 0:01:30]} 19. Rc1 {[%clk 0:00:56]}  Qxe5 {[%clk 0:01:04]} 20. Rxc5 {[%clk 0:00:38]}  Qxg5 {[%clk 0:01:03]} 21. Rc7 {[%clk 0:00:38]}  Rac8 {[%clk 0:00:57]} 22. h4 {[%clk 0:00:28]}  Qh6 {[%clk 0:00:53]} 23. Rxf8+ {[%clk 0:00:28]}  Kxf8 {[%clk 0:00:45]} 24. Qf3+ {[%clk 0:00:25]}  Ke8 {[%clk 0:00:42]} 25. Qc3 {[%clk 0:00:12]}  Rxc7 {[%clk 0:00:35]} 26. Qxc7 {[%clk 0:00:13]}  Qxh4 {[%clk 0:00:30]} 27. Nf3 {[%clk 0:00:11]}  Qd8 {[%clk 0:00:13]} 28. Qxb7 {[%clk 0:00:11]}  Qc8 {[%clk 0:00:13]} 29. Qa7 {[%clk 0:00:10]}  Qc1+ {[%clk 0:00:12]} 30. Kh2 {[%clk 0:00:10]}  Qh6+ {[%clk 0:00:12]} 31. Kg1 {[%clk 0:00:11]}  Qc1+ {[%clk 0:00:12]} 32. Kh2 {[%clk 0:00:11]}  Qh6+ {[%clk 0:00:12]} 33. Kg1 {[%clk 0:00:12]}  Qc1+ {[%clk 0:00:12]} 1/2-1/2


[Site "https://www.chess.com"]